fUSD/lending_fUSD_20260528
["ID","MTS","AMOUNT","RATE_DAILY","PERIOD"]
[423206529,1779928242000,-945.22,0.00014999,2]
[423206527,1779928242000,-945.22,0.00014999,2]
[423206528,1779928242000,-945.22,0.00014999,2]
[423206533,1779928242000,-945.22,0.00014999,2]
[423206534,1779928242000,-945.22,0.00014999,2]
[423206532,1779928242000,-945.22,0.00014999,2]
[423206530,1779928242000,-945.22,0.00014999,2]
[423206531,1779928242000,-945.22,0.00014999,2]
[423206535,1779928242000,-945.22,0.00014999,2]
[423206536,1779928242000,-945.22,0.00014999,2]
[423206539,1779928242000,-945.22,0.00014999,2]
[423206546,1779928242000,-2102.28,0.00014999,2]
[423206547,1779928242000,-2102.28,0.00014999,2]
[423206537,1779928242000,-945.22,0.00014999,2]
[423206545,1779928242000,-945.2885681,0.00014999,2]
[423206542,1779928242000,-945.22,0.00014999,2]
[423206538,1779928242000,-945.22,0.00014999,2]
[423206541,1779928242000,-945.22,0.00014999,2]
[423206543,1779928242000,-945.22,0.00014999,2]
[423206540,1779928242000,-945.22,0.00014999,2]
[423206544,1779928242000,-945.22,0.00014999,2]
[423206591,1779928243000,-322.92492,0.000148,2]
[423206590,1779928243000,-173.882649,0.000147,2]
[423206592,1779928243000,-798446.73551176,0.00015,2]
[423206589,1779928243000,-262.13069106,0.00013698,2]
[423206644,1779928246000,-16.8176707,0.00015,2]
[423206642,1779928246000,-74801.37401613,0.00015,2]
[423206647,1779928246000,-3501.85717142,0.00015,2]
[423206643,1779928246000,-4300.0,0.00015,2]
[423206646,1779928246000,-2087.7459,0.00015,2]
[423206648,1779928246000,-18060.03951162,0.00015,2]
[423206649,1779928246000,-794.30761346,0.00015,2]
[423206645,1779928246000,-5391.950416,0.00015,2]
[423206672,1779929133000,-139.45952013,0.00012896,2]
[423206671,1779929133000,-152.0,0.00011739,7]
[423206670,1779929133000,-152.0,0.00011724,7]
[423206674,1779929205000,-277.15063268,0.00013173,2]
[423206673,1779929205000,-110.54047987,0.00012896,2]
[423206698,1779929432000,-9999.99,0.00013699,2]
[423206697,1779929432000,-911.0,0.00013698,2]
[423206699,1779929432000,-2500.0,0.00013699,2]
[423206701,1779929432000,-166.66,0.00013699,2]
[423206705,1779929432000,-166.66,0.00013836,2]
[423206702,1779929432000,-154.5,0.00013716,2]
[423206706,1779929432000,-215.46156935,0.00013879,2]
[423206695,1779929432000,-161.94,0.0001368,2]
[423206703,1779929432000,-150.99,0.00013716,2]
[423206704,1779929432000,-363.65050153,0.00013791,2]
[423206700,1779929432000,-200.0,0.00013699,2]
[423206696,1779929432000,-150.0,0.00013698,2]
[423206690,1779929432000,-455.09188466,0.00013581,2]
[423206693,1779929432000,-279.87328052,0.00013644,2]
[423206691,1779929432000,-31.51047086,0.00013581,2]
[423206692,1779929432000,-500.0,0.00013618,2]
[423206689,1779929432000,-601.74764448,0.00013581,2]
[423206684,1779929432000,-161.94,0.00013239,2]
[423206688,1779929432000,-150.0,0.00013465,2]
[423206687,1779929432000,-267.86,0.00013401,2]
[423206683,1779929432000,-156.17,0.00013209,2]
[423206685,1779929432000,-200.0,0.00013251,2]
[423206681,1779929432000,-120.37159732,0.00013173,2]
[423206682,1779929432000,-621.5,0.00013195,2]
[423206707,1779929432000,-166.66,0.00013973,2]
[423206694,1779929432000,-1720.12671948,0.00013644,2]
[423206709,1779929432000,-250.0,0.00014,2]
[423206686,1779929432000,-168.5,0.0001326,2]
[423206714,1779929432000,-166.66,0.0001411,2]
[423206711,1779929432000,-167.65,0.00014025,2]
[423206738,1779929432000,-25000.0,0.0001453,3]
[423206737,1779929432000,-2829.77413983,0.00014529,2]
[423206735,1779929432000,-1446.162,0.00014529,2]
[423206736,1779929432000,-184.72340728,0.00014529,2]
[423206732,1779929432000,-5280.50167371,0.00014463,2]
[423206733,1779929432000,-2829.77413987,0.00014483,2]
[423206739,1779929432000,-2846.68600287,0.00014539,3]
[423206734,1779929432000,-5280.5016737,0.00014512,2]
[423206730,1779929432000,-1349.0,0.00014451,2]
[423206729,1779929432000,-508.34438602,0.0001445,2]
[423206726,1779929432000,-3247.0,0.000144,5]
[423206728,1779929432000,-189.06518679,0.0001445,2]
[423206731,1779929432000,-1349.0,0.00014451,2]
[423206725,1779929432000,-166.66,0.00014384,2]
[423206727,1779929432000,-500.0,0.0001445,2]
[423206715,1779929432000,-161.94,0.00014122,2]
[423206716,1779929432000,-399.3433305,0.00014186,2]
[423206717,1779929432000,-300.0,0.00014186,2]
[423206720,1779929432000,-300.0,0.00014186,2]
[423206718,1779929432000,-300.0,0.00014186,2]
[423206713,1779929432000,-152.0,0.00014102,7]
[423206719,1779929432000,-300.0,0.00014186,2]
[423206722,1779929432000,-300.0,0.00014186,2]
[423206721,1779929432000,-300.0,0.00014186,2]
[423206724,1779929432000,-166.66,0.00014247,2]
[423206723,1779929432000,-295.90921303,0.00014186,2]
[423206763,1779929438000,-25000.0,0.00014557,3]
[423206757,1779929438000,-1349.0,0.00014451,2]
[423206768,1779929438000,-2829.77413983,0.00014576,2]
[423206769,1779929438000,-500.0,0.00014579,2]
[423206760,1779929438000,-25000.0,0.00014548,3]
[423206761,1779929438000,-221.80598895,0.00014556,2]
[423206765,1779929438000,-161.94,0.00014563,2]
[423206767,1779929438000,-25000.0,0.00014574,3]
[423206758,1779929438000,-1349.0,0.00014451,2]
[423206770,1779929438000,-787.68,0.00014579,2]
[423206771,1779929438000,-1772.73,0.00014579,2]
[423206773,1779929438000,-25000.0,0.00014583,3]
[423206772,1779929438000,-171498.0173,0.0001458,2]
[423206766,1779929438000,-25000.0,0.00014566,3]
[423206764,1779929438000,-5280.5016737,0.0001456,2]
[423206745,1779929438000,-1349.0,0.00014451,2]
[423206762,1779929438000,-308.16276798,0.00014556,2]
[423206742,1779929438000,-1349.0,0.00014451,2]
[423206744,1779929438000,-1349.0,0.00014451,2]
[423206743,1779929438000,-1349.0,0.00014451,2]
[423206774,1779929438000,-25000.0,0.00014592,3]
[423206746,1779929438000,-1349.0,0.00014451,2]
[423206748,1779929438000,-1349.0,0.00014451,2]
[423206749,1779929438000,-1349.0,0.00014451,2]
[423206752,1779929438000,-1349.0,0.00014451,2]
[423206750,1779929438000,-1349.0,0.00014451,2]
[423206751,1779929438000,-1349.0,0.00014451,2]
[423206754,1779929438000,-1349.0,0.00014451,2]
[423206747,1779929438000,-1349.0,0.00014451,2]
[423206753,1779929438000,-1349.0,0.00014451,2]
[423206755,1779929438000,-1349.0,0.00014451,2]
[423206756,1779929438000,-1349.0,0.00014451,2]
[423206759,1779929438000,-22153.31399713,0.00014539,3]
[423206778,1779929438000,-25000.0,0.00014618,3]
[423206776,1779929438000,-5280.5016737,0.00014609,2]
[423206780,1779929438000,-470.83965124,0.00014626,2]
[423206797,1779929438000,-603.64,0.00014699,2]
[423206804,1779929438000,-1772.73,0.00014706,2]
[423206806,1779929438000,-2829.77413983,0.00014715,2]
[423206802,1779929438000,-5280.5016737,0.00014706,2]
[423206801,1779929438000,-2000.0,0.000147,2]
[423206803,1779929438000,-787.68,0.00014706,2]
[423206808,1779929438000,-25000.0,0.00014724,3]
[423206807,1779929438000,-25000.0,0.00014715,3]
[423206809,1779929438000,-25000.0,0.00014733,3]
[423206810,1779929438000,-25000.0,0.00014742,3]
[423206811,1779929438000,-25000.0,0.0001475,3]
[423206813,1779929438000,-2829.77413983,0.00014761,2]
[423206812,1779929438000,-5280.5016737,0.00014754,2]
[423206814,1779929438000,-1838.19624842,0.00014781,2]
[423206777,1779929438000,-25000.0,0.0001461,3]
[423206800,1779929438000,-500.39154945,0.00014699,2]
[423206798,1779929438000,-500.0,0.00014699,2]
[423206805,1779929438000,-25000.0,0.00014706,3]
[423206796,1779929438000,-25000.0,0.00014698,3]
[423206799,1779929438000,-500.0,0.00014699,2]
[423206779,1779929438000,-2829.77413983,0.00014622,2]
[423206781,1779929438000,-787.68,0.00014626,2]
[423206783,1779929438000,-25000.0,0.00014627,3]
[423206782,1779929438000,-1772.73,0.00014626,2]
[423206793,1779929438000,-25000.0,0.0001468,3]
[423206784,1779929438000,-5000.0,0.00014633,2]
[423206788,1779929438000,-25000.0,0.00014654,3]
[423206775,1779929438000,-25000.0,0.00014601,3]
[423206785,1779929438000,-25000.0,0.00014636,3]
[423206789,1779929438000,-5280.5016737,0.00014657,2]
[423206790,1779929438000,-25000.0,0.00014662,3]
[423206792,1779929438000,-25000.0,0.00014671,3]
[423206791,1779929438000,-2829.77413983,0.00014668,2]
[423206795,1779929438000,-25000.0,0.00014689,3]
[423206787,1779929438000,-25000.0,0.00014645,3]
[423206832,1779929439000,-20982.6719206,0.00014999,2]
[423206842,1779929439000,-787.68,0.00014999,2]
[423206836,1779929439000,-500.0,0.00014999,2]
[423206834,1779929439000,-500.0,0.00014999,2]
[423206838,1779929439000,-500.0,0.00014999,2]
[423206835,1779929439000,-500.0,0.00014999,2]
[423206839,1779929439000,-203.76945539,0.00014999,2]
[423206846,1779929439000,-787.68,0.00014999,2]
[423206843,1779929439000,-787.68,0.00014999,2]
[423206844,1779929439000,-787.68,0.00014999,2]
[423206848,1779929439000,-787.68,0.00014999,2]
[423206847,1779929439000,-787.68,0.00014999,2]
[423206855,1779929439000,-787.68,0.00014999,2]
[423206841,1779929439000,-8754.6768908,0.00014999,2]
[423206837,1779929439000,-500.0,0.00014999,2]
[423206831,1779929439000,-500.0,0.00014998,2]
[423206845,1779929439000,-787.68,0.00014999,2]
[423206840,1779929439000,-3466.3236236,0.00014999,2]
[423206816,1779929439000,-500.0,0.00014834,2]
[423206817,1779929439000,-500.0,0.00014834,2]
[423206815,1779929439000,-2829.77413983,0.00014807,2]
[423206818,1779929439000,-1838.19624842,0.0001484,2]
[423206822,1779929439000,-2000.0,0.0001486,2]
[423206819,1779929439000,-2000.0,0.0001485,2]
[423206821,1779929439000,-2829.77413983,0.00014854,2]
[423206825,1779929439000,-500.0,0.00014899,2]
[423206823,1779929439000,-5113.58631663,0.00014899,2]
[423206829,1779929439000,-2829.77413983,0.000149,2]
[423206820,1779929439000,-2000.0,0.0001485,2]
[423206828,1779929439000,-1838.19624842,0.000149,2]
[423206827,1779929439000,-694.13676336,0.000149,2]
[423206824,1779929439000,-500.0,0.00014899,2]
[423206826,1779929439000,-10000.0,0.000149,2]
[423206830,1779929439000,-399.08622868,0.000149,2]
[423206854,1779929439000,-787.68,0.00014999,2]
[423206833,1779929439000,-500.0,0.00014999,2]
[423206851,1779929439000,-787.68,0.00014999,2]
[423206873,1779929439000,-1772.73,0.00014999,2]
[423206880,1779929439000,-1772.73,0.00014999,2]
[423206874,1779929439000,-1772.73,0.00014999,2]
[423206882,1779929439000,-1772.73,0.00014999,2]
[423206876,1779929439000,-1772.73,0.00014999,2]
[423206878,1779929439000,-1772.73,0.00014999,2]
[423206879,1779929439000,-1772.73,0.00014999,2]
[423206872,1779929439000,-1772.73,0.00014999,2]
[423206881,1779929439000,-1772.73,0.00014999,2]
[423206877,1779929439000,-1772.73,0.00014999,2]
[423206883,1779929439000,-1772.91216464,0.00014999,2]
[423206885,1779929439000,-8912888.87569669,0.00015,2]
[423206887,1779929439000,-147834.43224366,0.00015,2]
[423206884,1779929439000,-4057.0,0.00015,5]
[423206850,1779929439000,-787.68,0.00014999,2]
[423206871,1779929439000,-1772.73,0.00014999,2]
[423206865,1779929439000,-1772.73,0.00014999,2]
[423206875,1779929439000,-1772.73,0.00014999,2]
[423206866,1779929439000,-1772.73,0.00014999,2]
[423206856,1779929439000,-787.68,0.00014999,2]
[423206853,1779929439000,-787.68,0.00014999,2]
[423206849,1779929439000,-787.68,0.00014999,2]
[423206852,1779929439000,-787.68,0.00014999,2]
[423206867,1779929439000,-1772.73,0.00014999,2]
[423206870,1779929439000,-1772.73,0.00014999,2]
[423206868,1779929439000,-1772.73,0.00014999,2]
[423206869,1779929439000,-1772.73,0.00014999,2]
[423206858,1779929439000,-787.68,0.00014999,2]
[423206857,1779929439000,-787.68,0.00014999,2]
[423206863,1779929439000,-1772.73,0.00014999,2]
[423206862,1779929439000,-787.8285681,0.00014999,2]
[423206861,1779929439000,-787.68,0.00014999,2]
[423206860,1779929439000,-787.68,0.00014999,2]
[423206864,1779929439000,-1772.73,0.00014999,2]
[423206886,1779929439000,-5229762.31599206,0.00015,2]
[423206859,1779929439000,-787.68,0.00014999,2]
[423206896,1779929444000,-1797.0,0.000143,2]
[423206895,1779929444000,-49.27328002,0.00014451,2]
[423206899,1779929444000,-1299.72671998,0.00014451,2]
[423206897,1779929444000,-2119.33276107,0.000143,2]
[423206900,1779929444000,-543.60086391,0.00014451,2]
[423206898,1779929444000,-1813.42613893,0.000143,2]
[423206903,1779929446000,-805.39913609,0.00014451,2]
[423206905,1779929446000,-1349.0,0.00014451,2]
[423206904,1779929446000,-1349.0,0.00014451,2]
[423206909,1779929446000,-427.46515504,0.00014851,2]
[423206907,1779929446000,-5280.5016737,0.00014803,2]
[423206906,1779929446000,-151.0,0.000145,2]
[423206908,1779929446000,-4188.03288082,0.00014851,2]
[423206985,1779929535000,156.21,7.918e-05,2]
[423206996,1779930340000,-361.79,9.857e-05,2]
[423206995,1779930340000,-156.21,9.238e-05,2]
[423206994,1779930340000,-150.0,8.961e-05,2]
[423206997,1779930446000,-33.41336322,9.857e-05,2]
[423206999,1779930446000,-156.21,0.00011877,2]
[423206998,1779930446000,-156.21,0.00010557,2]
[423207000,1779930446000,-551.0,0.00012301,2]
[423207001,1779930446000,-107.44692046,0.00013197,2]
[423207027,1779930632000,-166.66,0.00014129,2]
[423207024,1779930632000,-426.36,0.00013755,2]
[423207028,1779930632000,-166.66,0.00014344,2]
[423207023,1779930632000,-200.0,0.00013699,2]
[423207029,1779930632000,-213.87527368,0.00014344,2]
[423207034,1779930632000,-300.0,0.00014516,2]
[423207031,1779930632000,-13187.9286,0.00014439,2]
[423207033,1779930632000,-300.0,0.00014516,2]
[423207032,1779930632000,-427.4651,0.00014448,2]
[423207025,1779930632000,-166.66,0.00013914,2]
[423207036,1779930632000,-300.0,0.00014516,2]
[423207030,1779930632000,-3749.0,0.000144,5]
[423207026,1779930632000,-155.63,0.00014013,2]
[423207018,1779930632000,-168.5,0.00013674,2]
[423207020,1779930632000,-230.0,0.00013693,2]
[423207021,1779930632000,-9999.99,0.00013699,2]
[423207017,1779930632000,-1566.59900964,0.00013631,2]
[423207019,1779930632000,-150.0,0.00013677,2]
[423207015,1779930632000,-66.59900964,0.00013628,2]
[423207016,1779930632000,-433.40099036,0.00013631,2]
[423207013,1779930632000,-157.73,0.00013559,2]
[423207012,1779930632000,-154.5,0.00013558,2]
[423207014,1779930632000,-133.40099036,0.00013628,2]
[423207010,1779930632000,-48.76307954,0.00013197,2]
[423207011,1779930632000,-500.0,0.00013507,2]
[423207037,1779930632000,-300.0,0.00014516,2]
[423207022,1779930632000,-166.66,0.00013699,2]
[423207035,1779930632000,-300.0,0.00014516,2]
[423207071,1779930632000,-166.66,0.00014773,2]
[423207038,1779930632000,-156.21,0.00014516,2]
[423207092,1779930632000,-500.0,0.00014899,2]
[423207090,1779930632000,-4498.747082,0.0001487,2]
[423207077,1779930632000,-1510.77733,0.0001486,2]
[423207075,1779930632000,-1510.77733,0.0001485,2]
[423207078,1779930632000,-500.0,0.00014869,2]
[423207073,1779930632000,-1510.77733,0.0001485,2]
[423207084,1779930632000,-500.0,0.00014869,2]
[423207088,1779930632000,-13938.1638376,0.0001487,2]
[423207086,1779930632000,-8024.3873603,0.0001487,2]
[423207082,1779930632000,-264.71638377,0.00014869,2]
[423207039,1779930632000,-166.66,0.00014558,2]
[423207069,1779930632000,-561.26,0.00014697,2]
[423207067,1779930632000,-500.0,0.00014697,2]
[423207080,1779930632000,-500.0,0.00014869,2]
[423207065,1779930632000,-1156.93,0.00014657,2]
[423207040,1779930632000,-150.0,0.00014578,2]
[423207042,1779930632000,-500.0,0.00014579,2]
[423207053,1779930632000,-365.38617582,0.00014596,2]
[423207063,1779930632000,-215.46156935,0.0001462,2]
[423207046,1779930632000,-500.0,0.00014579,2]
[423207049,1779930632000,-500.0,0.00014596,2]
[423207044,1779930632000,-561.26,0.00014579,2]
[423207051,1779930632000,-500.0,0.00014596,2]
[423207061,1779930632000,-500.0,0.00014618,2]
[423207057,1779930632000,-500.0,0.00014618,2]
[423207059,1779930632000,-561.26,0.00014618,2]
[423207055,1779930632000,-161.15,0.00014601,2]
[423207048,1779930632000,-500.0,0.00014579,2]
[423207110,1779930633000,-594.55053115,0.000149,2]
[423207094,1779930633000,-561.26,0.00014899,2]
[423207097,1779930633000,-594.55053119,0.00014899,2]
[423207102,1779930633000,-594.55053115,0.00014899,2]
[423207098,1779930633000,-594.55053115,0.00014899,2]
[423207108,1779930633000,-594.55053115,0.000149,2]
[423207106,1779930633000,-594.55053115,0.000149,2]
[423207104,1779930633000,-594.55053115,0.00014899,2]
[423207112,1779930633000,-594.55053115,0.000149,2]
[423207114,1779930633000,-10000.0,0.000149,2]
[423207117,1779930633000,-5000.0,0.000149,2]
[423207116,1779930633000,-594.55053115,0.000149,2]
[423207119,1779930633000,-3211.69428432,0.000149,2]
[423207120,1779930633000,-4601.85482016,0.000149,2]
[423207100,1779930633000,-594.55053115,0.00014899,2]
[423207140,1779930638000,-561.26,0.00014999,2]
[423207142,1779930638000,-561.26,0.00014999,2]
[423207144,1779930638000,-561.26,0.00014999,2]
[423207143,1779930638000,-561.26,0.00014999,2]
[423207146,1779930638000,-561.26,0.00014999,2]
[423207145,1779930638000,-561.26,0.00014999,2]
[423207147,1779930638000,-561.26,0.00014999,2]
[423207150,1779930638000,-500.0,0.00014999,2]
[423207141,1779930638000,-561.26,0.00014999,2]
[423207153,1779930638000,-500.0,0.00014999,2]
[423207149,1779930638000,-500.0,0.00014999,2]
[423207152,1779930638000,-566.48,0.00014999,2]
[423207148,1779930638000,-561.28446503,0.00014999,2]
[423207151,1779930638000,-500.0,0.00014999,2]
[423207139,1779930638000,-561.26,0.00014999,2]
[423207131,1779930638000,-561.26,0.00014999,2]
[423207138,1779930638000,-561.26,0.00014999,2]
[423207136,1779930638000,-561.26,0.00014999,2]
[423207154,1779930638000,-500.0,0.00014999,2]
[423207133,1779930638000,-561.26,0.00014999,2]
[423207135,1779930638000,-561.26,0.00014999,2]
[423207134,1779930638000,-561.26,0.00014999,2]
[423207132,1779930638000,-561.26,0.00014999,2]
[423207130,1779930638000,-561.26,0.00014999,2]
[423207129,1779930638000,-561.26,0.00014999,2]
[423207127,1779930638000,-500.0,0.00014999,2]
[423207126,1779930638000,-500.0,0.00014999,2]
[423207124,1779930638000,-309.0,0.000149,2]
[423207123,1779930638000,-2064.48844573,0.000149,2]
[423207125,1779930638000,-500.0,0.00014999,2]
[423207137,1779930638000,-561.26,0.00014999,2]
[423207156,1779930638000,-500.0,0.00014999,2]
[423207128,1779930638000,-290.83030314,0.00014999,2]
[423207162,1779930638000,-500.0,0.00014999,2]
[423207175,1779930638000,-525.12,0.00014999,2]
[423207174,1779930638000,-525.12,0.00014999,2]
[423207179,1779930638000,-525.12,0.00014999,2]
[423207176,1779930638000,-525.12,0.00014999,2]
[423207180,1779930638000,-525.12,0.00014999,2]
[423207182,1779930638000,-525.12,0.00014999,2]
[423207170,1779930638000,-525.12,0.00014999,2]
[423207186,1779930638000,-525.12,0.00014999,2]
[423207184,1779930638000,-525.12,0.00014999,2]
[423207187,1779930638000,-525.2685681,0.00014999,2]
[423207183,1779930638000,-525.12,0.00014999,2]
[423207185,1779930638000,-525.12,0.00014999,2]
[423207188,1779930638000,-500.0,0.00014999,2]
[423207157,1779930638000,-500.0,0.00014999,2]
[423207181,1779930638000,-525.12,0.00014999,2]
[423207177,1779930638000,-525.12,0.00014999,2]
[423207189,1779930638000,-500.0,0.00014999,2]
[423207172,1779930638000,-525.12,0.00014999,2]
[423207171,1779930638000,-525.12,0.00014999,2]
[423207161,1779930638000,-500.0,0.00014999,2]
[423207165,1779930638000,-525.12,0.00014999,2]
[423207160,1779930638000,-252.09913183,0.00014999,2]
[423207158,1779930638000,-500.0,0.00014999,2]
[423207159,1779930638000,-500.0,0.00014999,2]
[423207163,1779930638000,-500.0,0.00014999,2]
[423207166,1779930638000,-525.12,0.00014999,2]
[423207169,1779930638000,-525.12,0.00014999,2]
[423207164,1779930638000,-525.12,0.00014999,2]
[423207173,1779930638000,-525.12,0.00014999,2]
[423207155,1779930638000,-500.0,0.00014999,2]
[423207168,1779930638000,-525.12,0.00014999,2]
[423207167,1779930638000,-525.12,0.00014999,2]
[423207178,1779930638000,-525.12,0.00014999,2]
[423207240,1779930639000,-560.66,0.00015,2]
[423207258,1779930639000,-1544.0,0.00015,2]
[423207246,1779930639000,-200.0,0.00015,2]
[423207248,1779930639000,-200.0,0.00015,2]
[423207242,1779930639000,-320.38,0.00015,2]
[423207244,1779930639000,-164.03,0.00015,2]
[423207247,1779930639000,-2000.0,0.00015,2]
[423207239,1779930639000,-10942480.19989878,0.00015,2]
[423207261,1779930639000,-151.0,0.00015,2]
[423207250,1779930639000,-1544.0,0.00015,2]
[423207260,1779930639000,-1544.0,0.00015,2]
[423207249,1779930639000,-1544.0,0.00015,2]
[423207241,1779930639000,-416.49,0.00015,2]
[423207259,1779930639000,-1544.0,0.00015,2]
[423207254,1779930639000,-1544.0,0.00015,2]
[423207256,1779930639000,-1544.0,0.00015,2]
[423207257,1779930639000,-1544.0,0.00015,2]
[423207255,1779930639000,-1544.0,0.00015,2]
[423207252,1779930639000,-1544.0,0.00015,2]
[423207253,1779930639000,-1544.0,0.00015,2]
[423207265,1779930639000,-151.0,0.00015,2]
[423207262,1779930639000,-151.0,0.00015,2]
[423207264,1779930639000,-151.0,0.00015,2]
[423207274,1779930639000,-152.0,0.00015,2]
[423207270,1779930639000,-152.0,0.00015,2]
[423207267,1779930639000,-151.0,0.00015,2]
[423207275,1779930639000,-152.0,0.00015,2]
[423207243,1779930639000,-151.0,0.00015,2]
[423207251,1779930639000,-1544.0,0.00015,2]
[423207238,1779930639000,-2998.0,0.00015,5]
[423207199,1779930639000,-1551.14,0.00014999,2]
[423207234,1779930639000,-1551.14,0.00014999,2]
[423207269,1779930639000,-151.000001,0.00015,2]
[423207190,1779930639000,-500.0,0.00014999,2]
[423207191,1779930639000,-500.0,0.00014999,2]
[423207193,1779930639000,-1551.14,0.00014999,2]
[423207203,1779930639000,-1551.14,0.00014999,2]
[423207207,1779930639000,-1551.14,0.00014999,2]
[423207205,1779930639000,-1551.14,0.00014999,2]
[423207194,1779930639000,-519.56568703,0.00014999,2]
[423207192,1779930639000,-500.0,0.00014999,2]
[423207195,1779930639000,-1551.14,0.00014999,2]
[423207196,1779930639000,-1551.14,0.00014999,2]
[423207197,1779930639000,-1551.14,0.00014999,2]
[423207200,1779930639000,-1551.14,0.00014999,2]
[423207198,1779930639000,-1551.14,0.00014999,2]
[423207201,1779930639000,-1551.14,0.00014999,2]
[423207208,1779930639000,-1551.14,0.00014999,2]
[423207211,1779930639000,-1551.14,0.00014999,2]
[423207224,1779930639000,-1551.14,0.00014999,2]
[423207221,1779930639000,-155.26419227,0.00014999,2]
[423207227,1779930639000,-1551.14,0.00014999,2]
[423207223,1779930639000,-215.71393759,0.00014999,2]
[423207213,1779930639000,-1551.14,0.00014999,2]
[423207215,1779930639000,-1551.14,0.00014999,2]
[423207219,1779930639000,-1551.14,0.00014999,2]
[423207217,1779930639000,-1551.14,0.00014999,2]
[423207228,1779930639000,-1551.14,0.00014999,2]
[423207232,1779930639000,-1551.14,0.00014999,2]
[423207230,1779930639000,-1551.14,0.00014999,2]
[423207236,1779930639000,-1551.29216464,0.00014999,2]
[423207245,1779930639000,-250.0,0.00015,2]
[423207268,1779930639000,-151.0,0.00015,2]
[423207332,1779930639000,-151.0,0.00019428,2]
[423207263,1779930639000,-151.0,0.00015,2]
[423207305,1779930639000,-426.36,0.00017194,2]
[423207307,1779930639000,-267.86,0.0001784,2]
[423207310,1779930639000,-164.03,0.00018,2]
[423207306,1779930639000,-500.0,0.00017781,2]
[423207311,1779930639000,-350.0,0.00018,2]
[423207309,1779930639000,-167.26099672,0.00018,2]
[423207308,1779930639000,-26265.85367527,0.00018,2]
[423207314,1779930639000,-167.26099672,0.000184,2]
[423207324,1779930639000,-507.0,0.00019,2]
[423207315,1779930639000,-151.0,0.0001841,2]
[423207318,1779930639000,-426.36,0.00018913,2]
[423207317,1779930639000,-2000.0,0.00018743,2]
[423207320,1779930639000,-2500.0,0.00019,2]
[423207304,1779930639000,-2000.0,0.00017039,2]
[423207313,1779930639000,-25772.56,0.00018356,2]
[423207319,1779930639000,-157.73,0.00018982,2]
[423207323,1779930639000,-161.29530079,0.00019,2]
[423207322,1779930639000,-43923.55514558,0.00019,2]
[423207326,1779930639000,-180.0,0.00019,2]
[423207328,1779930639000,-235.0,0.00019,2]
[423207325,1779930639000,-720.43091483,0.00019,2]
[423207327,1779930639000,-282.0,0.00019,2]
[423207330,1779930639000,-151.0,0.00019428,2]
[423207331,1779930639000,-200.0,0.00019428,2]
[423207329,1779930639000,-151.0,0.00019428,2]
[423207333,1779930639000,-174.61919141,0.00019428,2]
[423207334,1779930639000,-151.0,0.00019428,2]
[423207271,1779930639000,-152.0,0.00015,2]
[423207316,1779930639000,-166.92,0.00018579,2]
[423207301,1779930639000,-168.12,0.00016712,2]
[423207321,1779930639000,-43923.55514558,0.00019,2]
[423207312,1779930639000,-167.26099672,0.000182,2]
[423207266,1779930639000,-151.0,0.00015,2]
[423207303,1779930639000,-161.15,0.00017011,2]
[423207273,1779930639000,-152.0,0.00015,2]